bitfinex-derivatives/quotes_ETHF0:USTF0_20240822
["timestamp","ask_amount","ask_price","bid_price","bid_amount"]
[1724314537773,14.67369584,2631.1,2631.0,1.32983]
[1724314538172,9.67369584,2631.1,2631.0,1.32983]
[1724314538366,9.67369584,2631.1,2631.0,1.10445]
[1724314538563,9.67369584,2631.1,2631.0,0.37995]
[1724314539370,14.67369584,2631.1,2631.0,0.37995]
[1724314541173,15.76769584,2631.1,2630.8,1.09866626]
[1724314541370,6.4602,2630.9,2630.8,0.38464626]
[1724314541680,7.5542,2630.9,2630.8,0.00466626]
[1724314541971,11.4602,2630.9,2630.8,0.38464626]
[1724314543679,11.4602,2630.9,2630.8,0.00466626]
[1724314543979,11.4602,2630.9,2630.8,0.38464626]
[1724314544370,11.4602,2630.9,2630.8,0.00466626]
[1724314546771,19.668,2630.9,2630.8,0.00466626]
[1724314547868,19.668,2630.9,2630.8,0.38464626]
[1724314548066,14.668,2630.9,2630.8,0.38464626]
[1724314549286,4.15773,2630.9,2629.8,0.99229254]
[1724314549582,3.2078,2630.1,2630.0,0.38009]
[1724314549771,3.2078,2630.4,2630.3,0.38004]
[1724314549968,3.2078,2630.4,2630.3,1.33017]
[1724314550271,0.00273192,2630.4,2630.3,0.38357229]
[1724314550581,4.5919,2630.8,2630.7,0.37999]
[1724314551579,4.59654044,2630.8,2630.7,0.37999]
[1724314552679,3.21244044,2630.8,2630.7,0.37999]
[1724314555678,3.21244044,2630.8,2630.6,0.38]
[1724314556078,3.21244044,2630.8,2630.7,0.37999]
[1724314556275,3.21244044,2630.8,2630.4,3.9261747]
[1724314556481,3.21244044,2630.8,2630.7,0.37999]
[1724314557984,3.21244044,2630.8,2630.6,0.38]
[1724314558277,1.5401,2630.7,2630.6,0.38]
[1724314558779,3.21244044,2630.8,2630.7,0.37999]
[1724314558969,4.89064044,2630.8,2630.7,0.37999]
[1724314561384,3.21244044,2630.8,2630.7,0.37999]
[1724314563180,3.21244044,2630.8,2630.4,0.38003]
[1724314563181,12.01324044,2630.8,2630.4,0.38003]
[1724314563377,3.2078,2630.5,2630.4,0.38003]
[1724314563885,3.2078,2630.5,2630.4,1.33012]
[1724314564080,1.5926,2630.6,2630.5,0.38002]
[1724314564283,1.5926,2630.6,2630.5,1.33007]
[1724314564487,1.5926,2630.6,2630.5,0.38002]
[1724314566589,5.3942,2630.6,2630.5,0.38002]
[1724314566784,1.5926,2630.6,2630.5,0.38002]
[1724314567389,1.5926,2630.6,2630.4,0.38003]
[1724314567585,1.6725,2630.5,2630.4,0.38003]
[1724314568094,4.8803,2630.5,2630.3,0.38356229]
[1724314568278,1.6404,2630.4,2630.3,0.38356229]
[1724314568883,5.442,2630.4,2630.3,0.38356229]
[1724314569282,5.442,2630.4,2630.3,0.00353229]
[1724314569488,13.29938285,2630.4,2630.3,0.00353229]
[1724314569687,10.82203,2630.4,2630.3,0.00353229]
[1724314569890,10.442,2630.4,2630.3,0.00353229]
[1724314570287,7.92604182,2630.4,2630.3,0.00353229]
[1724314571288,1.6404,2630.4,2630.3,0.38358229]
[1724314571483,3.2078,2630.5,2630.4,0.38003]
[1724314571686,3.5602182,2630.7,2630.5,0.38002]
[1724314571884,3.5602182,2630.7,2630.6,2.28004]
[1724314571885,1.5733,2630.7,2630.6,2.28004]
[1724314572093,0.00464044,2630.8,2630.7,2.27995]
[1724314572293,0.00464044,2630.8,2630.7,6.08075]
[1724314572890,0.00464044,2630.8,2630.7,7.07304254]
[1724314573990,0.00464044,2630.8,2630.7,6.08075]
[1724314575500,0.00464044,2630.8,2630.7,7.07304254]
[1724314577098,0.00464044,2630.8,2630.7,8.97343778]
[1724314577694,0.00464044,2630.8,2630.7,7.07304254]
[1724314578490,0.00464044,2630.8,2630.7,5.13077]
[1724314579096,0.00464044,2630.8,2630.7,1.32997]
[1724314579299,0.00464044,2630.8,2630.7,5.13077]
[1724314579503,0.00464044,2630.8,2630.7,1.32997]
[1724314580898,0.00464044,2630.8,2630.7,0.37999]
[1724314581094,3.21244044,2630.8,2630.7,0.37999]
[1724314581294,0.00464044,2630.8,2630.7,0.37999]
[1724314582705,3.21244044,2630.8,2630.7,0.37999]
[1724314582907,7.01324044,2630.8,2630.5,0.38001]
[1724314583200,3.21244044,2630.8,2630.5,0.38001]
[1724314583402,9.00095864,2630.8,2630.6,0.38]
[1724314583700,5.19935864,2630.8,2630.7,0.37999]
[1724314583901,3.21244044,2630.8,2630.7,0.37999]
[1724314585491,3.21244044,2630.8,2630.3,1.94593483]
[1724314585696,5.19935864,2630.8,2630.6,0.38]
[1724314586096,3.8016,2630.7,2630.6,0.38]
[1724314586897,10.7885182,2630.7,2630.3,0.00353229]
[1724314587205,3.2078,2630.5,2630.4,0.38003]
[1724314587806,8.6211,2630.5,2630.4,0.38003]
[1724314588805,8.6211,2630.5,2630.3,0.38357229]
[1724314589105,1.7109,2630.4,2630.3,0.00353229]
[1724314589300,5.5125,2630.4,2630.3,0.00353229]
[1724314589507,7.4994182,2630.4,2630.3,0.00353229]
[1724314589802,5.5125,2630.4,2630.3,0.00353229]
[1724314591507,5.5125,2630.4,2630.3,0.38358229]
[1724314591699,12.4994182,2630.4,2630.2,0.38006]
[1724314592009,3.8016,2630.3,2630.2,0.38006]
[1724314592199,5.7885182,2630.3,2630.2,0.38006]
[1724314592402,8.8016,2630.3,2630.2,0.38006]
[1724314592596,3.8016,2630.3,2630.2,0.38463445]
[1724314594412,1.7109,2630.4,2630.3,0.38005]
[1724314594711,1.7109,2630.4,2630.3,1.33017]
[1724314596010,5.5125,2630.4,2630.3,0.38005]
[1724314596599,5.5125,2630.4,2630.2,0.38462445]
[1724314596904,1.7109,2630.4,2630.3,0.38005]
[1724314597106,5.5125,2630.4,2630.2,0.38463445]
[1724314597298,1.7109,2630.4,2630.2,0.38463445]
[1724314599902,1.7109,2630.4,2630.3,0.38005]
[1724314600309,5.5125,2630.4,2630.3,0.38005]
[1724314601604,1.7109,2630.4,2630.3,0.38005]
[1724314602411,1.7109,2630.4,2630.3,1.33017]
[1724314602908,5.5125,2630.4,2630.3,0.38005]
[1724314604007,1.7109,2630.4,2630.3,0.38005]
[1724314604413,1.7109,2630.4,2630.3,1.33017]
[1724314606408,3.2078,2630.5,2630.4,1.33012]
[1724314607618,3.2078,2630.5,2630.4,0.38003]
[1724314608003,3.2078,2630.5,2630.3,0.38004]
[1724314608201,8.7434,2630.5,2630.2,0.00457445]
[1724314608403,4.9418,2630.5,2630.2,0.38462445]
[1724314608612,4.9418,2630.5,2630.3,0.38004]
[1724314608817,4.9418,2630.5,2630.4,0.38003]
[1724314610111,4.9418,2630.5,2630.4,1.33012]
[1724314610112,3.2078,2630.5,2630.4,1.33012]
[1724314610820,3.2078,2630.5,2630.4,0.38003]
[1724314611614,3.2078,2630.5,2630.4,1.33012]
[1724314613918,1.67284044,2630.8,2630.7,0.37999]
[1724314614115,3.28814044,2630.8,2630.7,1.32997]
[1724314614428,3.28814044,2630.8,2630.7,0.37999]
[1724314615320,3.28814044,2630.8,2630.6,0.38]
[1724314615515,3.28814044,2630.8,2630.7,0.37999]
[1724314615820,3.28814044,2630.8,2630.6,0.37999]
[1724314616517,3.28814044,2630.8,2630.7,0.37999]
[1724314616718,3.28814044,2630.8,2630.6,0.38]
[1724314617020,3.28814044,2630.8,2630.5,0.38001]
[1724314617214,3.2078,2630.6,2630.5,0.38001]
[1724314617517,3.28814044,2630.8,2630.4,0.95008]
[1724314617727,3.28814044,2630.8,2630.6,0.37999]
[1724314618218,7.08974044,2630.8,2630.7,0.37999]
[1724314618411,3.28814044,2630.8,2630.7,0.37999]
[1724314618613,7.08894044,2630.8,2630.7,0.37999]
[1724314619825,3.28814044,2630.8,2630.7,0.37999]
[1724314621427,3.28814044,2630.8,2630.7,1.32997]
[1724314621621,0.00464044,2630.8,2630.7,7.69355]
[1724314621821,1.99261404,2631.1,2631.0,2.27969]
[1724314621822,5.84e-06,2631.1,2631.0,2.27969]
[1724314622021,5.0081182,2631.7,2631.6,0.37986]
[1724314622225,3.0212,2631.7,2631.6,0.37986]
[1724314622526,5.0081182,2631.7,2631.3,0.37989]
[1724314622717,5.0081182,2631.7,2631.0,5.17909754]
[1724314622718,3.2078,2631.5,2631.0,4.186]
[1724314623028,3.2078,2631.5,2631.4,0.37989]
[1724314623224,3.21349584,2631.5,2631.3,0.37989]
[1724314623730,3.21349584,2631.5,2631.4,0.37989]
[1724314623914,3.21349584,2631.5,2631.3,0.37989]
[1724314624119,5.20041404,2631.5,2631.0,0.00569584]
[1724314624319,3.2078,2631.2,2631.0,0.38563584]
[1724314624519,4.5205,2631.1,2631.0,0.38563584]
[1724314626424,3.0132,2631.1,2631.0,4.18643584]
[1724314626630,5.20041404,2631.5,2631.0,3.80649584]
[1724314626827,4.77309584,2631.5,2631.4,0.37989]
[1724314627030,7.80569584,2631.5,2631.4,0.37989]
[1724314629337,6.29339584,2631.5,2631.4,0.37989]
[1724314630335,6.29339584,2631.5,2631.4,1.32961]
[1724314630336,3.21349584,2631.5,2631.4,1.32961]
[1724314631533,3.21349584,2631.5,2631.4,0.37989]
[1724314632833,0.00569584,2631.5,2631.4,4.17989]
[1724314633242,0.00569584,2631.5,2631.4,0.37989]
[1724314633544,0.00569584,2631.5,2631.4,4.17989]
[1724314634534,0.00569584,2631.5,2631.4,0.37989]
[1724314635441,0.00569584,2631.5,2631.4,4.17989]
[1724314637555,0.00569584,2631.5,2631.4,0.37989]
[1724314638348,0.00569584,2631.5,2631.4,1.32961]
[1724314638555,0.00569584,2631.5,2631.4,5.12961]
[1724314639455,0.00569584,2631.5,2631.4,11.07933]
[1724314639843,0.00569584,2631.5,2631.4,12.97878]
[1724314640052,0.00569584,2631.5,2631.4,15.60678]
[1724314647348,0.00569584,2631.5,2631.4,10.60678]
[1724314651043,0.00569584,2631.5,2631.4,15.60678]
[1724314652648,0.00569584,2631.5,2631.4,18.81458]
[1724314653446,0.00439854,2631.7,2631.6,2.27918]
[1724314653954,0.00439854,2631.7,2631.6,6.07918]
[1724314654460,1.53649584,2632.1,2632.0,0.3798]
[1724314655358,1.54024882,2632.1,2632.0,1.32931]
[1724314656858,1.54024882,2632.1,2632.0,6.26382015]
[1724314658753,1.54024882,2632.1,2632.0,0.3798]
[1724314660262,5.33944882,2632.1,2632.0,0.3798]
[1724314661365,5.15014883,2632.1,2632.0,0.3798]
[1724314665653,5.15014883,2632.1,2632.0,1.32931]
[1724314665860,5.15014883,2632.1,2632.0,0.3798]
[1724314668361,5.15014883,2632.1,2632.0,1.32931]
[1724314668664,1.00318455,2632.1,2632.0,10.60505]
[1724314668867,1.24220617,2632.2,2632.1,2.27875]
[1724314669068,1.24220617,2632.2,2632.0,9.635]
[1724314669069,1.1006,2632.6,2632.5,1.32906]
[1724314669266,1.1006,2632.6,2632.5,4.90639]
[1724314669769,1.10432132,2632.6,2632.5,4.91094181]
[1724314670762,0.00372132,2632.6,2632.5,8.70934181]
[1724314670957,0.00569584,2632.8,2632.7,2.27822]
[1724314671157,0.00569584,2632.8,2632.7,4.90622]
[1724314671366,0.00569584,2632.8,2632.7,8.70462]
[1724314671963,0.00905904,2632.8,2632.7,8.70462]
[1724314672364,0.00905904,2632.8,2632.7,7.75536]
[1724314672570,0.00905904,2632.8,2632.7,0.3797]
[1724314674164,0.00905904,2632.8,2632.7,1.32896]
[1724314674375,0.00905904,2632.8,2632.7,4.90622]
[1724314675273,0.00905904,2632.8,2632.7,8.70462]
[1724314675478,3.2078,2633.1,2633.0,1.32881]
[1724314675772,3.2078,2633.1,2633.0,3.95681]
[1724314676075,3.2078,2633.1,2633.0,3.00766]
[1724314676262,3.2078,2633.1,2633.0,0.37966]
[1724314676464,3.2109953,2633.1,2633.0,0.37966]
[1724314676877,3.2109953,2633.1,2633.0,1.32881]
[1724314677282,3.2109953,2633.1,2633.0,0.37966]
[1724314684067,3.2109953,2633.1,2632.7,4.0458128]
[1724314684068,12.0085953,2633.1,2632.5,0.00455181]
[1724314684275,3.2078,2632.7,2632.6,0.37972]
[1724314684580,6.2785,2633.0,2632.9,0.37967]
[1724314684973,6.2785,2633.0,2632.9,1.32886]
[1724314685183,3.2078,2633.0,2632.9,5.12726]
[1724314685768,3.2078,2633.0,2632.9,6.07645]
[1724314687575,0.0031953,2633.1,2632.9,6.07645]
[1724314687576,0.0031953,2633.1,2633.0,2.27796]
[1724314687775,0.0031953,2633.1,2633.0,9.92804814]
[1724314690979,0.0031953,2633.1,2633.0,10.99924814]
[1724314691384,0.00569584,2633.3,2633.2,1.32871]
[1724314691774,0.00569584,2633.3,2633.2,2.40131]
[1724314692183,0.00569584,2633.3,2633.2,3.35039]
[1724314692482,0.00878634,2633.3,2633.2,3.35039]
[1724314694581,0.00878634,2633.3,2633.2,1.32871]
[1724314695583,0.00878634,2633.3,2633.2,0.37963]
[1724314695986,0.00878634,2633.3,2633.2,1.32871]
[1724314696189,0.00878634,2633.3,2633.2,0.37963]
[1724314696384,3.80638634,2633.3,2633.2,0.37963]
[1724314697679,3.80638634,2633.3,2632.8,3.57722]
[1724314697872,3.2078,2633.2,2632.8,2.628]
[1724314698078,0.00878634,2633.3,2632.8,3.00769]
[1724314698079,3.2078,2632.9,2632.8,3.00769]
[1724314698296,3.2078,2633.2,2633.0,0.37965]
[1724314698678,7.0054,2633.2,2633.1,0.37964]
[1724314698887,3.2078,2633.2,2633.1,0.37964]
[1724314699186,7.0054,2633.2,2633.1,0.37964]
[1724314700289,3.2078,2633.2,2633.1,0.37964]
[1724314700791,3.2078,2633.2,2633.1,3.95676]
[1724314701087,3.2078,2633.2,2633.1,4.90588]
[1724314702486,3.2078,2633.2,2633.1,3.95676]
[1724314702685,3.2078,2633.2,2633.1,0.37964]
[1724314703477,3.2078,2633.2,2633.0,0.37965]
[1724314703677,3.2078,2633.2,2632.5,3.10339594]
[1724314703882,3.2078,2633.2,2632.7,0.3797]
[1724314703883,3.2078,2632.9,2632.7,0.3797]
[1724314704087,2.1454,2632.8,2632.7,0.3797]
[1724314704283,3.2436,2632.8,2632.7,0.3797]
[1724314704590,3.2436,2632.8,2632.7,1.32896]
[1724314704591,2.2217,2632.8,2632.7,1.32896]
[1724314704990,4.2297,2633.2,2632.7,1.32896]
[1724314704991,4.2297,2633.2,2633.1,0.37964]
[1724314705179,4.3313,2633.2,2633.1,3.00764]
[1724314706489,4.3313,2633.2,2633.1,0.37964]
[1724314707777,4.3313,2633.2,2632.9,2.628]
[1724314707984,1.1881,2633.1,2632.9,2.628]
[1724314708186,1.1579,2633.0,2632.9,3.00767]
[1724314710194,1.1579,2633.0,2632.6,2.628]
[1724314710195,4.9563,2633.0,2632.6,2.628]
[1724314710395,3.2078,2632.9,2632.8,0.37968]
[1724314710988,3.2078,2632.9,2632.8,1.3289]
[1724314711892,1.1579,2633.0,2632.9,0.37967]
[1724314713786,4.9563,2633.0,2632.9,0.37967]
[1724314717700,1.1579,2633.0,2632.9,3.95686]
[1724314717996,1.1881,2633.1,2633.0,1.32881]
[1724314718392,4.3313,2633.2,2633.1,1.32876]
[1724314720606,4.3313,2633.2,2633.1,0.37964]
[1724314720801,6.3182182,2633.2,2633.1,0.37964]
[1724314725298,0.00878634,2633.3,2633.2,1.32871]
[1724314726310,0.00878634,2633.3,2633.2,6.07539]
[1724314728095,0.00878634,2633.3,2633.2,2.27779]
[1724314728406,0.00878634,2633.3,2633.2,1.32871]
[1724314728604,1.1914,2633.7,2633.2,1.32871]
[1724314728605,1.9869182,2633.7,2633.5,0.37959]
[1724314728903,6.3546182,2633.9,2633.8,0.37954]
[1724314729498,4.3677,2633.9,2633.8,0.37954]
[1724314729819,4.37090701,2633.9,2633.8,0.37954]
[1724314730304,3.21100701,2633.9,2633.8,1.3284]
[1724314732204,3.21100701,2633.9,2633.8,0.37954]
[1724314733005,0.00320701,2633.9,2633.8,13.0692]
[1724314733203,0.00320701,2633.9,2633.8,14.26]
[1724314735706,0.00320701,2633.9,2633.8,24.31384793]
[1724314736005,0.00569584,2634.1,2634.0,1.3283]
[1724314736310,0.00569584,2634.1,2634.0,5.1251]
[1724314736508,0.00569584,2634.1,2634.0,11.2236]
[1724314736804,0.00569584,2634.1,2634.0,6.2236]
[1724314737001,0.00858653,2634.1,2634.0,6.2236]
[1724314739206,0.00858653,2634.1,2634.0,9.4314]
[1724314740110,0.00858653,2634.1,2634.0,14.4314]
[1724314741402,0.00858653,2634.1,2634.0,9.4314]
[1724314741799,0.00858653,2634.1,2634.0,6.2236]
[1724314742198,0.00858653,2634.1,2634.0,9.4314]
[1724314742508,1.129,2634.5,2634.4,0.37946]
[1724314742703,1.129,2634.5,2634.4,3.00746]
[1724314743613,4.37676018,2634.7,2634.6,0.37943]
[1724314743808,4.38078883,2634.7,2634.6,0.37943]
[1724314744205,8.17598883,2634.7,2634.5,0.37944]
[1724314744402,2.3507,2634.6,2634.5,0.37944]
[1724314745706,4.38078883,2634.7,2634.5,0.37943]
[1724314746009,2.3231,2634.6,2634.5,0.37944]
[1724314746805,2.3231,2634.6,2634.4,0.38377648]
[1724314747904,2.3231,2634.6,2634.5,0.37944]
[1724314748910,6.1191,2634.6,2634.4,0.38377648]
[1724314749109,2.3231,2634.6,2634.5,0.37944]
[1724314749415,2.3231,2634.6,2634.4,0.38377648]
[1724314749914,2.3231,2634.6,2634.5,0.37944]
[1724314750417,6.1191,2634.6,2634.5,0.37944]
[1724314750909,11.49854,2634.6,2634.4,0.00432648]
[1724314751114,3.796,2634.5,2634.4,0.00432648]
[1724314752810,3.796,2634.5,2633.9,2.628]
[1724314753012,3.2078,2634.0,2633.9,0.37953]
[1724314753213,2.3231,2634.6,2634.3,0.37947]
[1724314753214,3.2078,2634.4,2634.3,0.37947]
[1724314753408,7.0038,2634.4,2634.3,0.37947]
[1724314753918,7.0038,2634.4,2634.3,0.38403277]
[1724314754816,12.0038,2634.4,2634.3,0.38403277]
[1724314755009,12.0038,2634.4,2634.0,0.94879]
[1724314755209,3.2078,2634.4,2634.0,0.94879]
[1724314755414,3.2078,2634.4,2634.3,0.37947]
[1724314755810,7.0038,2634.4,2634.3,0.37947]
[1724314756016,12.38327,2634.4,2634.2,0.37948]
[1724314756319,8.2078,2634.4,2633.7,5.31969584]
[1724314756514,0.94863,2634.5,2633.7,5.31969584]
[1724314756515,3.2078,2633.9,2633.8,0.37954]
[1724314757016,7.0046,2633.9,2633.8,0.38277411]
[1724314758607,7.0046,2633.9,2633.8,0.00323411]
[1724314758819,12.0046,2633.9,2633.8,0.00323411]
[1724314759016,13.0872,2633.9,2633.7,0.00569584]
[1724314759316,3.7968,2633.8,2633.7,0.00569584]
[1724314759918,3.7968,2633.8,2633.7,0.38525584]
[1724314760118,3.7968,2633.8,2633.7,0.38892924]
[1724314761214,4.2904,2633.9,2633.8,0.37954]
[1724314761616,8.0872,2633.9,2633.8,0.37954]
[1724314762323,9.2602,2633.9,2633.8,0.37954]
[1724314763013,5.4634,2633.9,2633.8,0.37954]
[1724314763324,9.2602,2633.9,2633.8,0.37954]
[1724314763715,5.4634,2633.9,2633.8,0.37954]
[1724314766319,5.4634,2633.9,2633.8,1.32841]
[1724314766525,4.2904,2633.9,2633.8,1.32841]
[1724314766718,3.2078,2633.9,2633.8,2.44731]
[1724314766920,3.2078,2633.9,2633.8,1.32841]
[1724314767426,3.2078,2633.9,2633.8,0.37954]
[1724314770228,3.2078,2633.9,2633.8,1.32841]
[1724314770524,3.2078,2633.9,2633.8,2.49741]
[1724314770723,3.2078,2633.9,2633.8,3.44628]
[1724314772020,3.2078,2633.9,2633.8,2.49741]
[1724314772727,3.2078,2633.9,2633.8,1.32841]
[1724314775016,3.2078,2633.9,2633.8,0.37954]
[1724314779037,3.2078,2633.9,2633.8,1.32841]
[1724314780522,3.2078,2633.9,2633.8,1.47254]
[1724314786628,7.0046,2633.9,2633.8,1.47254]
[1724314788542,3.2078,2633.9,2633.8,1.47254]
[1724314788729,7.0046,2633.9,2633.8,1.47254]
[1724314788930,3.7968,2633.9,2633.8,1.47254]
[1724314789426,4.3112,2634.0,2633.9,0.37953]
[1724314789626,4.3112,2634.0,2633.9,1.32836]
[1724314789842,4.3112,2634.0,2633.9,2.49636]
[1724314791641,4.3112,2634.0,2633.9,0.37953]
[1724314792135,4.3112,2634.0,2633.9,1.32836]
[1724314793339,4.3112,2634.0,2633.9,0.37953]
[1724314796637,1.1034,2634.0,2633.9,0.37953]
[1724314796939,4.3112,2634.0,2633.9,0.37953]
[1724314797536,1.1034,2634.0,2633.9,0.37953]
[1724314797835,4.3112,2634.0,2633.9,0.37953]
[1724314798834,6.2981182,2634.0,2633.9,0.37953]
[1724314799041,5.1947182,2634.0,2633.9,1.32836]
[1724314800145,1.9869182,2634.0,2633.9,7.44196]
[1724314800337,3.58404182,2634.2,2633.9,7.06243]
[1724314800532,3.58404182,2634.2,2634.1,1.4725]
[1724314800839,1.1,2634.2,2634.1,1.4725]
[1724314801549,1.47949,2634.2,2634.0,1.093]
[1724314801737,1.4795,2634.2,2634.0,0.37951]
[1724314801938,3.796,2634.1,2633.9,1.47252]
[1724314802239,5.69612858,2634.0,2633.9,1.47252]
[1724314802746,9.49292858,2634.0,2633.9,1.47252]
[1724314806451,5.69612858,2634.0,2633.9,1.47252]
[1724314806944,1.99079178,2634.0,2633.9,7.16698]
[1724314807154,1.99079178,2634.2,2634.1,1.32826]
[1724314807342,1.99079178,2634.2,2634.1,2.27702]
[1724314807648,5.19859178,2634.3,2634.2,1.32821]
[1724314807858,5.19859178,2634.3,2634.2,2.42121]
[1724314808953,5.19859178,2634.3,2634.2,0.37949]
[1724314809249,9.49212858,2634.3,2634.2,1.47249]
[1724314809443,7.0038,2634.3,2634.2,1.47249]
[1724314809641,9.49140412,2634.3,2634.2,0.37949]
[1724314809843,7.0038,2634.3,2634.2,0.37949]
[1724314810043,9.49148314,2634.3,2634.2,1.47249]
[1724314810743,5.69548314,2634.3,2634.2,1.47249]
[1724314810951,9.49148314,2634.3,2634.2,1.47249]
[1724314811353,5.69548314,2634.3,2634.2,1.47249]
[1724314813539,3.2078,2634.3,2634.2,2.42121]
[1724314813746,3.2078,2634.3,2634.2,8.41161]
[1724314813747,5.19754728,2634.3,2634.2,8.41161]
[1724314813943,1.98974728,2634.3,2634.2,8.41161]
[1724314814248,1.98974728,2634.5,2634.4,1.32811]
[1724314814443,1.98974728,2634.5,2634.4,2.42111]
[1724314814644,5.19754728,2634.6,2634.5,1.32805]
[1724314815147,5.19754728,2634.6,2634.5,0.37944]
[1724314815350,5.69548314,2634.6,2634.5,0.37944]
[1724314815648,5.69548314,2634.6,2634.4,1.093]
[1724314815649,9.87091314,2634.6,2634.4,1.47245]
[1724314815845,6.0437,2634.5,2634.4,1.47245]
[1724314817248,8.91082314,2634.5,2634.3,1.093]
[1724314817552,1.98856579,2634.4,2634.3,0.37947]
[1724314817755,1.98856579,2634.4,2634.3,1.093]
[1724314817962,6.66314314,2634.4,2634.2,1.47248]
[1724314818250,3.2078,2634.3,2634.2,1.47248]
[1724314818452,3.58727,2634.3,2634.1,0.37949]
[1724314818656,3.15531455,2634.2,2634.1,0.37949]
[1724314818857,3.15531455,2634.2,2634.1,0.3795]
[1724314819052,6.95131455,2634.2,2634.0,0.3795]
[1724314819251,3.13301455,2634.1,2634.0,0.3795]
[1724314819862,1.98861455,2634.4,2634.1,0.94876]
[1724314820059,1.98861455,2634.4,2634.3,1.32816]
[1724314820448,3.13301455,2634.5,2634.4,0.37946]
[1724314820648,3.13301455,2634.5,2634.4,1.32811]
[1724314820850,1.1444,2634.5,2634.4,1.32811]
[1724314821050,5.19641455,2634.6,2634.5,1.32805]
[1724314821347,0.00778883,2634.7,2634.6,1.32801]
[1724314821749,0.00778883,2634.7,2634.6,5.12321]
[1724314822153,0.00778883,2634.7,2634.6,6.07179]
[1724314822360,0.00778883,2634.7,2634.6,2.27659]
[1724314823658,0.00778883,2634.7,2634.6,1.32801]
[1724314824159,7.01078883,2634.7,2634.6,0.37943]
[1724314824656,8.14228883,2634.7,2634.6,0.37943]
[1724314825463,8.14228883,2634.7,2634.3,4.03698467]
[1724314825464,0.37943,2634.6,2634.4,0.37945]
[1724314825661,1.1708,2634.5,2634.3,0.37946]
[1724314825966,3.2078,2634.4,2634.3,0.37946]
[1724314826450,0.37948,2634.3,2634.0,0.47950991]
[1724314826654,4.3393,2634.2,2634.1,0.37949]
[1724314827063,8.1353,2634.2,2634.1,0.37949]
[1724314827755,4.3393,2634.2,2634.1,0.37949]
[1724314830658,8.1353,2634.2,2634.1,0.37949]
[1724314831066,8.1353,2634.2,2634.0,0.37951]
[1724314831260,6.32791455,2634.2,2633.7,2.63336924]
[1724314831462,6.32791455,2634.2,2634.0,0.37951]
[1724314833153,6.32791455,2634.2,2634.1,0.3795]
[1724314833563,10.12391455,2634.2,2634.1,0.3795]
[1724314835467,4.3393,2634.2,2634.1,1.32826]
[1724314835668,3.2078,2634.2,2634.1,2.27702]
[1724314836671,1.98861455,2634.4,2634.3,1.32815]
[1724314836860,7.57201455,2634.5,2634.4,1.32811]
[1724314837059,5.5834,2634.5,2634.4,1.32811]
[1724314838067,7.57201455,2634.5,2634.4,1.32811]
[1724314838267,5.5834,2634.5,2634.4,1.32811]
[1724314838666,7.57201455,2634.5,2634.4,1.32811]
[1724314840368,5.5834,2634.5,2634.4,1.32811]
[1724314840569,5.5834,2634.5,2634.4,2.27676]
[1724314843967,2.3756,2634.5,2634.4,2.27676]
[1724314844469,4.36421455,2634.5,2634.4,0.37946]
[1724314844972,0.37946,2634.4,2634.0,0.94878]
[1724314845278,1.1081,2634.3,2634.2,0.37948]
[1724314845462,1.98784182,2634.4,2634.3,0.37947]
[1724314845665,7.57124182,2634.5,2634.4,0.37946]
[1724314846175,11.36724182,2634.5,2634.4,0.37946]
[1724314846381,5.5834,2634.5,2634.4,0.37946]
[1724314848977,5.5834,2634.5,2634.4,1.32811]
[1724314849379,7.57124182,2634.5,2634.4,1.32811]
[1724314849682,5.5834,2634.5,2634.4,1.79116041]
[1724314850280,7.57124182,2634.5,2634.4,1.79116041]
[1724314850575,7.57124182,2634.5,2634.4,1.32811]
[1724314852679,4.36344182,2634.5,2634.4,1.32811]
[1724314856478,5.24272314,2634.5,2634.4,0.37946]
[1724314856679,5.24272314,2634.5,2634.3,1.093]
[1724314856680,0.37946,2634.4,2634.3,1.093]
[1724314856886,5.24109733,2634.5,2634.3,1.47246]
[1724314857077,9.03709733,2634.5,2634.4,0.37946]
[1724314857278,3.796,2634.4,2634.3,1.47246]
[1724314857478,6.28204733,2634.4,2634.3,1.47246]
[1724314858081,3.796,2634.4,2634.3,1.47246]
[1724314858583,3.796,2634.4,2634.3,2.42114]
[1724314858788,4.86164733,2634.5,2634.3,2.42114]
[1724314858789,4.86164733,2634.5,2634.4,0.37946]
[1724314859083,8.65764733,2634.5,2634.4,1.47246]
[1724314859382,4.86164733,2634.5,2634.4,1.47246]
[1724314860691,4.86164733,2634.5,2634.4,0.37946]
[1724314860880,4.86164733,2634.5,2634.3,1.093]
[1724314860881,0.37946,2634.4,2634.3,0.37946]
[1724314861080,6.66167875,2634.4,2634.2,1.093]
[1724314861279,3.2078,2634.3,2634.2,1.47248]
[1724314861480,5.69401875,2634.3,2634.2,1.47248]
[1724314861685,9.49001875,2634.3,2634.2,1.47248]
[1724314861986,8.0968,2634.3,2634.1,0.37949]
[1724314862285,5.69402208,2634.3,2634.2,1.47248]
[1724314862475,9.489989,2634.3,2634.2,0.37948]
[1724314862680,3.2078,2634.3,2634.2,0.37948]
[1724314863084,3.2078,2634.3,2634.2,1.3282]
[1724314863287,1.98875935,2634.4,2634.3,1.32815]
[1724314866305,1.98875935,2634.5,2634.4,2.27673]
[1724314866505,1.98875935,2634.6,2634.5,2.27666]
[1724314866804,0.00778883,2634.7,2634.6,1.328]
[1724314867003,0.00778883,2634.7,2634.6,6.1608]
[1724314867204,0.00778883,2634.7,2634.6,9.956]
[1724314871909,0.00778883,2634.7,2634.6,9.00743]
[1724314872702,0.00778883,2634.7,2634.6,4.11353]
[1724314872902,0.00778883,2634.7,2634.6,1.48953]
[1724314873107,0.00778883,2634.7,2634.6,0.37943]
[1724314873406,0.00778883,2634.7,2634.6,0.86085109]
[1724314873606,0.00778883,2634.7,2634.6,0.37943]
[1724314874912,3.08364818,2634.7,2634.6,0.37943]
[1724314876007,3.08364818,2634.7,2634.6,0.85753519]
[1724314877007,3.08364818,2634.7,2634.3,2.624]